[Event "15th Paleochora Open 2022"]
[Site "Paleochora"]
[Date "2022.07.19"]
[Round "4.8"]
[White "David, Alberto"]
[Black "Godzwon, Iwo"]
[Result "1/2-1/2"]
[ECO "B30"]
[WhiteElo "2534"]
[BlackElo "2336"]
[Annotator "TA"]
[PlyCount "95"]
[EventDate "2022.07.17"]
[EventType "swiss"]
[EventCountry "GRE"]
[SourceTitle "playchess.com"]
[Source "ChessBase"]
[SourceQuality "1"]
[TimeControl "40/5400+30:900+30"]

{[%evp 9,95,35,34,22,20,28,22,14,9,-11,-3,-13,-12,-35,-31,-85,-81,-95,-99,-104,-92,-129,-96,-106,-121,-133,-102,-99,-113,-95,-84,-82,-51,-119,-115,-125,-87,-89,-86,-179,-177,-182,-166,-171,-132,-133,-79,-89,-69,-84,-84,-76,-49,-88,-102,-192,-174,-172,-79,-77,-76,-81,-79,-118,0,-6,0,-104,-43,-35,-50,-47,-56,-50,-22,-19,0,0,0,1,44,8,6,0,0,0,8,8]} 1. e4 {[%emt 0:00:06]} c5 {[%emt 0:00:58]} 2. Nf3 {[%emt 0:00:06]} Nc6 {[%emt 0:00:33]} 3. Bb5 {[%emt 0:00:46]} Nf6 {[%emt 0:00:22]} 4. Bxc6 {[%emt 0:03:35]} dxc6 {[%emt 0:00:15]} 5. d3 {[%emt 0:00:05]} Bg4 {[%emt 0:00:03][%cal Oc5c4]} 6. Nbd2 {[%emt 0:04:47] B30: Sicilian: 2...Nc6 3 Bb5, lines without ...g6.} Nd7 {[%emt 0:00:39]} 7. h3 {[%emt 0:02:03]} Bh5 {[%emt 0:00:04]} 8. g4 {[%emt 0:07:05]} Bg6 {[%emt 0:00:09]} 9. e5 {[%emt 0:00:06][%cal Oe5e6]} e6 {[%emt 0:08:06]} 10. Qe2 {[%emt 0:00:25] [#]} Qc7 $146 {[%emt 0:09:21]} ({Predecessor:} 10... Be7 11. Ne4 Bxe4 12. Qxe4 Qb6 13. c4 Qb4+ 14. Kf1 Rd8 15. g5 Nb6 16. h4 Rd7 {1-0 (27) Kovachev,D (2308)-Laverton,C (2133) Stavanger 2017}) 11. a3 {[%emt 0:04:02]} O-O-O {[%emt 0:06:45]} 12. Nc4 {[%emt 0:00:32]} (12. Nb3 $15) 12... b5 $17 {[%emt 0:19:00]} 13. Nd6+ {[%emt 0:15:47]} Bxd6 {[%emt 0:01:51]} 14. exd6 {[%emt 0:00:05]} Qxd6 {[%emt 0:00:50]} 15. Be3 {[%emt 0:08:19]} Qd5 $1 {[%emt 0:11:48] ...Ne5 is the strong threat.} 16. Rg1 {[%emt 0:00:59]} Nb6 {[%emt 0:01:10][%cal Bd7b6,Bb6a4,Ba4c3][%mdl 32]} 17. Nd2 {[%emt 0:04:19]} Na4 {[%emt 0:07:39]} 18. b3 {[%emt 0:00:07] [#]} Qe5 $1 $36 {[%emt 0:00:50][%mdl 2048] Black is really pushing.} 19. Rc1 {[%emt 0:01:38]} Nc3 {[%emt 0:00:45]} 20. Qf3 {[%emt 0:00:05]} Qd5 {[%emt 0:05:40]} 21. Qxd5 {[%emt 0:00:53]} (21. Kf1 $15) 21... exd5 {[%emt 0:00:46]} ({Don't play} 21... Rxd5 $6 22. f3 $11) 22. Bxc5 {[%emt 0:05:17]} Rhe8+ {[%emt 0:00:16]} 23. Kf1 {[%emt 0:00:03]} Ne2 {[%emt 0:00:02]} 24. Ra1 {[%emt 0:00:03]} Nxg1 $19 {[%emt 0:00:04]} 25. Kxg1 {[%emt 0:00:04]} Re2 {[%emt 0:10:47]} 26. Rd1 {[%emt 0:01:45]} a6 {[%emt 0:00:03]} 27. Kf1 {[%emt 0:00:04]} Ree8 {[%emt 0:00:16]} (27... Rde8 $142 28. Be3 R8xe3 29. fxe3 Rh2) 28. Nf3 {[%emt 0:00:45]} h5 {[%emt 0:00:40]} 29. a4 {[%emt 0:02:48]} bxa4 {[%emt 0:04:55]} 30. bxa4 {[%emt 0:00:05]} Kd7 {[%emt 0:00:12]} 31. a5 {[%emt 0:00:03]} Rb8 {[%emt 0:00:29] Prevents Rb1.} 32. Bb6 {[%emt 0:00:04]} (32. Nd4 $17 {was called for.}) 32... hxg4 {[%emt 0:01:05]} 33. hxg4 {[%emt 0:00:03] [#]} c5 {[%emt 0:00:46] Inhibits Nd4.} (33... Kd6 $1 $19 {is more deadly.} 34. c4 f6) 34. Bxc5 $17 {[%emt 0:00:24]} Rbc8 {[%emt 0:01:04]} 35. Bd4 {[%emt 0:00:50]} Rxc2 {[%emt 0:02:16] And now ...f6 would win.} 36. Bxg7 {[%emt 0:01:25]} Ra2 {[%emt 0:00:54]} ({Black should try} 36... Kd6 $17 {White must now prevent ...Ra2.} 37. Bf6 Ra2) 37. Ne5+ $1 $11 {[%emt 0:02:15]} Kd6 {[%emt 0:02:34]} 38. Rb1 {[%emt 0:00:47]} (38. f4 $11 {keeps the balance.}) 38... Rxa5 {[%emt 0:01:34]} (38... Rxe5 $17 39. Rb6+ Kc5 40. Bxe5 Bxd3+ 41. Kg2 d4) 39. Rb6+ $15 {[%emt 0:00:03]} Kc7 {[%emt 0:00:29]} 40. Rc6+ {[%emt 0:00:00]} Kb7 {[%emt 0:00:00][%cal Og6d3]} 41. Rd6 $1 {[%emt 0:00:08]} Rc5 {[%emt 0:11:30]} 42. f4 {[%emt 0:03:08]} Rxe5 {[%emt 0:05:21]} 43. Bxe5 {[%emt 0:02:09] Hoping for f5.} Bxd3+ $11 {[%emt 0:00:03] KRB-KRB} 44. Kf2 {[%emt 0:00:07] With the idea Rf6.} Rc7 {[%emt 0:00:15]} 45. Rd8 {[%emt 0:08:20]} Re7 {[%emt 0:00:03] The position is equal.} 46. Rxd5 {[%emt 0:00:05]} Bb5 {[%emt 0:00:24]} 47. f5 {[%emt 0:03:42]} Rd7 {[%emt 0:01:15]} (47... Kc6 $5 48. Rd6+ Kc5 $11) 48. Rxd7+ {[%emt 0:15:01] Weighted Error Value: White=0.19 (very precise) /Black=0.19 (very precise)} 1/2-1/2

[Event "15th Paleochora Open 2022"]
[Site "Paleochora"]
[Date "2022.07.19"]
[Round "4.9"]
[White "Maltsevskaya, Aleksandra"]
[Black "Grigorov, Grigor"]
[Result "1/2-1/2"]
[ECO "B15"]
[WhiteElo "2378"]
[BlackElo "2511"]
[Annotator "TA"]
[PlyCount "48"]
[EventDate "2022.07.17"]
[EventType "swiss"]
[EventCountry "GRE"]
[SourceTitle "playchess.com"]
[Source "ChessBase"]
[SourceQuality "1"]
[TimeControl "40/5400+30:900+30"]

{[%evp 12,48,31,25,34,35,27,17,19,18,20,13,18,8,23,28,24,3,24,14,26,0,25,25,37,31,29,36,30,25,34,16,6,10,17,0,0,7,31]} 1. e4 {[%emt 0:03:06]} c6 {[%emt 0:00:07]} 2. d4 {[%emt 0:00:42]} d5 {[%emt 0:00:07]} 3. Nc3 {[%emt 0:00:33]} dxe4 {[%emt 0:00:10]} 4. Nxe4 {[%emt 0:00:06]} Nf6 {[%emt 0:00:05]} 5. Nxf6+ {[%emt 0:00:43]} exf6 {[%emt 0:00:09]} 6. c3 {[%emt 0:00:27]} Bd6 {[%emt 0:00:33]} 7. Bd3 {[%emt 0:00:23]} Na6 {[%emt 0:00:12][%cal Bb8a6,Ba6c7,Bc7d5][%mdl 32] B15: Caro-Kann: 3 Nc3: 3...g6 and 3...dxe4 4 Nxe4 Nf6 5 Nxf6+ exf6.} 8. Ne2 {[%emt 0:05:12][%cal Bg1e2,Be2g3,Bg3e4,Be4c5,Bc5d3,Bd3f4][%mdl 32]} Nc7 {[%emt 0:00:17]} 9. O-O {[%emt 0:04:38]} O-O {[%emt 0:00:52]} 10. Bf4 {[%emt 0:06:16]} Nd5 {[%emt 0:05:13]} 11. Bxd6 {[%emt 0:00:28]} Qxd6 {[%emt 0:00:08] [#]} 12. Ng3 $146 {[%emt 0:00:21]} ({Predecessor:} 12. Qd2 Bg4 13. Ng3 Rfe8 14. Rfe1 Nf4 15. Bf1 h5 16. h3 Bd7 17. Ne4 Qc7 18. Nc5 {1-0 (43) Sjugirov,S (2661)-Matlakov,M (2680) Moscow 2021}) 12... g6 {[%emt 0:00:58]} 13. Ne4 {[%emt 0:01:47]} Qd8 {[%emt 0:00:56]} 14. Bc4 {[%emt 0:01:08]} Nc7 {[%emt 0:06:13]} 15. Qf3 {[%emt 0:00:56]} Kg7 {[%emt 0:04:58]} 16. Rad1 {[%emt 0:01:34]} f5 {[%emt 0:15:56]} 17. Nc5 {[%emt 0:00:20]} Qd6 {[%emt 0:00:52]} 18. Rfe1 {[%emt 0:01:10]} b6 {[%emt 0:01:26]} 19. Nd3 {[%emt 0:00:18]} Bd7 {[%emt 0:10:30]} 20. h4 {[%emt 0:08:15]} Rae8 {[%emt 0:01:44]} 21. Nf4 {[%emt 0:04:55]} Rxe1+ {[%emt 0:00:57] The position is equal.} 22. Rxe1 {[%emt 0:00:07]} Re8 {[%emt 0:01:34]} 23. Re3 {[%emt 0:01:23]} Rxe3 {[%emt 0:02:46]} 24. Qxe3 {[%emt 0:00:09]} Ne8 {[%emt 0:00:39] Weighted Error Value: White=0.07 (flawless) /Black=0.05 (flawless)} 1/2-1/2

[Event "15th Paleochora Open 2022"]
[Site "Paleochora"]
[Date "2022.07.19"]
[Round "4.10"]
[White "Mitsis, Georgios"]
[Black "Yankelevich, Lev"]
[Result "1/2-1/2"]
[ECO "E71"]
[WhiteElo "2334"]
[BlackElo "2496"]
[Annotator "TA"]
[PlyCount "29"]
[EventDate "2022.07.17"]
[EventType "swiss"]
[EventCountry "GRE"]
[SourceTitle "playchess.com"]
[Source "ChessBase"]
[SourceQuality "1"]
[TimeControl "40/5400+30:900+30"]

{[%evp 9,29,29,51,33,33,39,37,39,42,39,61,64,44,8,5,24,47,-17,0,0,42,-10]} 1. d4 {[%emt 0:01:22]} Nf6 {[%emt 0:00:02]} 2. c4 {[%emt 0:00:11]} d6 {[%emt 0:00:15]} 3. Nc3 {[%emt 0:00:41]} g6 {[%emt 0:00:44]} 4. e4 {[%emt 0:00:15]} Bg7 {[%emt 0:00:06]} 5. h3 {[%emt 0:02:33]} Nbd7 {[%emt 0:00:08]} 6. Be3 {[%emt 0:01:37] E71: King's Indian: 4 e4 d6 5 h3.} e5 {[%emt 0:00:05]} 7. d5 {[%emt 0:00:11]} Nc5 {[%emt 0:00:04]} 8. f3 {[%emt 0:00:53]} Nh5 {[%emt 0:03:22]} 9. Nge2 {[%emt 0:00:39] Prevents Ng3.} f5 {[%emt 0:01:55]} 10. exf5 $1 {[%emt 0:02:26]} gxf5 {[%emt 0:04:53]} 11. Qd2 {[%emt 0:04:34] [#]} Qh4+ $146 {[%emt 0:14:26]} (11... f4 $5 {[%cal Rf4e3]} 12. Bxc5 dxc5 $11) ({Predecessor:} 11... O-O 12. O-O-O b5 13. cxb5 a6 14. g4 Nf6 15. Bxc5 dxc5 16. Ng3 axb5 17. Bxb5 Qd6 {1-0 (60) Ergazakis,I (2306)-Theodorou,N (2569) Kavala 2021}) 12. Bf2 {[%emt 0:01:15]} Qf6 {[%emt 0:00:07]} ({Not} 12... Qxc4 13. Nd4 $1 Qb4 14. a3 $1 $18) 13. Be3 {[%emt 0:12:59] Against Bh6} (13. b4 $14 Na6 14. Rb1) 13... Qh4+ {[%emt 0:00:17]} (13... f4 $11 14. Bxc5 dxc5) 14. Bf2 $14 {[%emt 0:01:47]} Qf6 {[%emt 0:01:21]} ({Don't take} 14... Qxc4 {[#]} 15. Nd4 $1 Qb4 16. a3 $1 $18) 15. Be3 {[%emt 0:08:39] Inhibits Bh6.  Weighted Error Value: White=0.15 (very precise) /Black=0.07 (flawless)} (15. b4 $14 Na6 16. Rb1) 1/2-1/2

[Event "15th Paleochora Open 2022"]
[Site "Paleochora"]
[Date "2022.07.19"]
[Round "4.11"]
[White "Nevednichy, Vladislav"]
[Black "Eden, James"]
[Result "1-0"]
[ECO "C54"]
[WhiteElo "2473"]
[BlackElo "2258"]
[Annotator "TA"]
[PlyCount "95"]
[EventDate "2022.07.17"]
[EventType "swiss"]
[EventCountry "GRE"]
[SourceTitle "playchess.com"]
[Source "ChessBase"]
[SourceQuality "1"]
[TimeControl "40/5400+30:900+30"]

{[%evp 23,95,21,49,20,45,40,32,38,50,21,60,42,168,160,183,174,174,144,146,77,189,188,356,204,467,259,256,160,183,183,190,185,183,179,185,162,204,201,206,175,211,163,281,268,270,270,278,276,253,216,212,178,254,237,487,487,487,487,1219,1180,1366,1339,1184,862,2076,1611,6637,6495,29964,1831,1732,1495,29980,29974]} 1. e4 {[%emt 0:01:47]} e5 {[%emt 0:00:17]} 2. Nf3 {[%emt 0:00:04]} Nc6 {[%emt 0:00:08]} 3. Bc4 {[%emt 0:00:18]} Nf6 {[%emt 0:00:17]} 4. d3 {[%emt 0:00:05]} Bc5 {[%emt 0:00:19]} 5. O-O {[%emt 0:00:04]} O-O {[%emt 0:00:26]} 6. h3 {[%emt 0:02:06]} d6 {[%emt 0:02:07]} 7. c3 {[%emt 0:00:59]} a6 {[%emt 0:00:56]} 8. Bb3 {[%emt 0:02:25]} Ba7 {[%emt 0:00:52]} 9. Re1 {[%emt 0:00:39]} h6 {[%emt 0:00:49]} 10. Nbd2 {[%emt 0:00:05][%cal Bb1d2,Bd2f1,Bf1e3,Be3g2,Bg2f4][%mdl 32]} Nh5 {[%emt 0:01:40]} 11. Nf1 {[%emt 0:00:27]} Qf6 {[%emt 0:00:15]} 12. Be3 {[%emt 0:00:20]} Nf4 {[%emt 0:02:08]} 13. Kh2 {[%emt 0:03:02] C54: Giuoco Piano: 4 c3 Nf6, main lines with 5 d4 and 5 d3.} g5 {[%emt 0:02:30]} 14. Bxa7 {[%emt 0:03:55]} Rxa7 {[%emt 0:00:28] [#]} 15. Ne3 $146 {[%emt 0:00:13] White is slightly better.} ({Predecessor:} 15. Ng1 g4 16. g3 Nxh3 17. Nxh3 gxh3 18. Qe2 Ne7 19. Bd1 Qg5 20. Qh5 f5 21. exf5 Qxh5 22. Bxh5 Rxf5 23. Bg4 Rxf2+ 24. Kxh3 Bxg4+ 25. Kxg4 Rxb2 26. d4 Nc6 {0-1 (26) Nogueira,D (1671)-Marques,R (1823) Luso 2018}) 15... Ne7 {[%emt 0:10:40]} 16. Ng1 {[%emt 0:01:29]} Kh8 {[%emt 0:28:50]} 17. g3 {[%emt 0:02:54]} Rg8 {[%emt 0:00:29]} 18. Qf3 {[%emt 0:21:09]} Ra8 {[%emt 0:03:24]} 19. gxf4 {[%emt 0:02:47]} gxf4 {[%emt 0:00:19]} 20. Ng2 {[%emt 0:00:54]} Rg5 {[%emt 0:05:28]} 21. Ne2 {[%emt 0:04:30]} (21. d4 $142) 21... h5 {[%emt 0:06:20]} (21... Ng6 $16 {was worth a try.}) 22. Ngxf4 $1 $18 {[%emt 0:00:43]} Bg4 $2 {[%emt 0:10:31]} (22... exf4 23. Qxf4 Qxf4+ 24. Nxf4 Ng6) 23. Qe3 {[%emt 0:01:31]} (23. hxg4 $142 Rxg4 24. Rg1 $1 (24. Qh3 Rh4 $14) 24... Rh4+ 25. Kg2 (25. Qh3 $2 exf4 26. Nd4 Rxh3+ 27. Kxh3 f3 $19) 25... Rg8+ 26. Kf1) 23... Rag8 $2 {[%emt 0:02:54] [#]} (23... exf4 24. Qxf4 Qxf4+ 25. Nxf4 Bd7) 24. Rg1 $1 {[%emt 0:03:31]} exf4 {[%emt 0:00:26]} 25. Nxf4 {[%emt 0:01:37]} Bd7 {[%emt 0:06:09]} 26. Rxg5 {[%emt 0:03:03]} Rxg5 {[%emt 0:07:31]} 27. Rg1 {[%emt 0:00:58]} Rxg1 {[%emt 0:04:06]} 28. Kxg1 {[%emt 0:00:29]} h4 {[%emt 0:00:07]} 29. Kh2 {[%emt 0:02:22]} Kh7 {[%emt 0:01:48]} 30. Ng2 {[%emt 0:01:07]} Be6 {[%emt 0:01:58]} 31. Bc2 {[%emt 0:01:39]} Kg7 {[%emt 0:00:42]} 32. d4 {[%emt 0:00:53][%cal Bd3d4,Bd4e5][%mdl 32]} Bc4 {[%emt 0:00:45]} (32... Bxa2 $142 33. f4 Kf8) 33. e5 {[%emt 0:01:07]} dxe5 {[%emt 0:00:25]} 34. dxe5 {[%emt 0:00:08]} Qh6 {[%emt 0:00:51]} 35. Qxh6+ {[%emt 0:02:57]} Kxh6 {[%emt 0:00:03]} 36. Nxh4 {[%emt 0:02:34]} Bxa2 {[%emt 0:00:10][%mdl 4096] Endgame KBN-KBN} 37. f4 {[%emt 0:01:56][%cal Bf2f4,Bf4f5][%mdl 32]} Nd5 {[%emt 0:00:20]} (37... a5 {was called for.} 38. Bd3 Nd5) 38. Kg3 {[%emt 0:00:55]} Ne3 $2 {[%emt 0:00:08]} (38... Nb6 39. Kg4 Nc4) 39. Nf5+ {[%emt 0:00:49]} Nxf5+ {[%emt 0:00:07]} 40. Bxf5 {[%emt 0:00:00] KB-KB} a5 {[%emt 0:00:00]} (40... Kg7 $142 41. Bc8 Bd5) 41. Bd7 {[%emt 0:01:18]} Bc4 {[%emt 0:06:39]} 42. f5 {[%emt 0:01:06]} Kg7 {[%emt 0:00:31]} 43. Kf4 {[%emt 0:00:19]} b5 {[%emt 0:00:19]} 44. h4 {[%emt 0:03:24] Black must now prevent Kg5.} b4 {[%emt 0:06:53]} 45. cxb4 {[%emt 0:01:14]} axb4 {[%emt 0:00:08]} 46. Bc6 {[%emt 0:01:15]} (46. Kg5 $142 Bf1 47. h5 Kh8 48. h6 Bh3 49. Be8 Kg8 {[#]} 50. Bxf7+ $1 {[%mdl 512]} Kxf7 51. h7) 46... Kh6 {[%emt 0:00:45]} 47. Ke4 {[%emt 0:00:52]} Kh5 {[%emt 0:00:52]} 48. Bd5 {[%emt 0:00:09] Weighted Error Value: White=0.33/Black=1.16} 1-0

[Event "15th Paleochora Open 2022"]
[Site "Paleochora"]
[Date "2022.07.19"]
[Round "4.12"]
[White "Antic, Dejan"]
[Black "Hristodoulou, Panagiotis"]
[Result "1/2-1/2"]
[ECO "E21"]
[WhiteElo "2452"]
[BlackElo "2330"]
[Annotator "TA"]
[PlyCount "45"]
[EventDate "2022.07.17"]
[EventType "swiss"]
[EventCountry "GRE"]
[SourceTitle "playchess.com"]
[Source "ChessBase"]
[SourceQuality "1"]
[TimeControl "40/5400+30:900+30"]

{[%evp 9,45,16,32,41,32,7,24,0,0,0,0,8,22,0,25,55,47,-42,105,110,112,103,142,132,176,185,117,54,242,241,254,247,247,0,132,0,237,0]} 1. d4 {[%emt 0:00:30]} Nf6 {[%emt 0:05:22]} 2. Nf3 {[%emt 0:00:22]} e6 {[%emt 0:00:14]} 3. c4 {[%emt 0:01:20]} Bb4+ {[%emt 0:00:09]} 4. Nc3 {[%emt 0:02:14]} Bxc3+ {[%emt 0:03:53]} 5. bxc3 {[%emt 0:00:11]} Ne4 {[%emt 0:00:07]} 6. Qc2 {[%emt 0:06:33] E21: Nimzo-Indian: 4 Nf3.} f5 {[%emt 0:00:40]} 7. g4 {[%emt 0:01:45]} O-O {[%emt 0:04:44][%cal Oe4f2]} 8. gxf5 {[%emt 0:05:41] White has an edge.} exf5 {[%emt 0:00:04]} 9. Rg1 {[%emt 0:01:16]} d6 {[%emt 0:10:38] [#]} 10. Ng5 $146 {[%emt 0:04:22]} ({Predecessor:} 10. Bh6 Rf7 11. Ng5 Nxg5 12. Bxg5 Qe8 13. e3 Nd7 14. Bd3 Nf8 15. h4 Bd7 16. h5 {1-0 (28) Ward,C (2431)-Salada,E Ghent 2008}) 10... Nc6 {[%emt 0:13:38] [#]} 11. Bg2 $1 $36 {[%emt 0:09:32][%cal Bf1g2,Bg2e4,Be4d3][%mdl 2080] White is more active.} Kh8 {[%emt 0:18:51]} (11... Nf6 12. Qd3) 12. Nxe4 {[%emt 0:11:05]} fxe4 {[%emt 0:00:06]} 13. Be3 {[%emt 0:01:15]} ({White should play} 13. Bxe4 $14 Qh4 14. Rg3) 13... Na5 {[%emt 0:04:33]} (13... Re8 $1 $15 {stays ahead.}) 14. Bxe4 $16 {[%emt 0:03:10]} ({Don't play} 14. Qa4 c6 $14) 14... Qh4 {[%emt 0:06:31] Threatens to win with ...Re8.} 15. Bd3 $1 {[%emt 0:03:52]} b6 {[%emt 0:03:10]} 16. O-O-O {[%emt 0:05:35]} Ba6 {[%emt 0:01:54]} 17. d5 {[%emt 0:05:33] aiming for Rg3.} Rf7 {[%emt 0:06:10]} (17... c5 $18) 18. Bd4 {[%emt 0:02:34]} (18. Rg3 $16 Raf8 19. Qa4) 18... Bxc4 $2 {[%emt 0:03:14]} ({Better is} 18... c6 $14) 19. Qa4 $18 {[%emt 0:03:17] The board is on fire.} Qh6+ {[%emt 0:00:33]} 20. Be3 {[%emt 0:04:27]} Qf6 {[%emt 0:00:14]} 21. Bd4 {[%emt 0:07:56]} (21. Bc2 $1 $18) 21... Qh6+ $16 {[%emt 0:00:07] [#]} 22. Be3 {[%emt 0:00:03]} (22. Kb1 $1 $16 {Hoping for Rxg7.} c5 23. dxc6 (23. Bxc4 cxd4 24. Ba6 dxc3 $17)) 22... Qf6 $18 {[%emt 0:00:07] [#]} 23. Bd4 $2 {[%emt 0:00:04] Weighted Error Value: White=0.31/Black=0.34} ({Only move:} 23. Bc2 $1 $18) 1/2-1/2

[Event "15th Paleochora Open 2022"]
[Site "Paleochora"]
[Date "2022.07.19"]
[Round "4.13"]
[White "Demchenko, Svitlana"]
[Black "Barbot, Pierre"]
[Result "1/2-1/2"]
[ECO "E52"]
[WhiteElo "2122"]
[BlackElo "2438"]
[Annotator "TA"]
[PlyCount "108"]
[EventDate "2022.07.17"]
[EventType "swiss"]
[EventCountry "GRE"]
[SourceTitle "playchess.com"]
[Source "ChessBase"]
[SourceQuality "1"]
[TimeControl "40/5400+30:900+30"]

{[%evp 19,108,0,29,13,27,33,29,-14,-13,-21,-10,-18,-31,-45,-43,-39,-53,-63,-56,-55,-52,-71,-67,-98,-62,-95,-95,-93,-95,-91,-45,-50,-31,-46,-38,-52,-43,-48,-50,-67,-75,-77,-8,-37,-29,-78,-70,-85,-81,-95,0,0,0,0,0,-35,-26,-28,0,0,0,0,0,0,0,-8,-8,-8,-8,-8,-8,-8,-8,-8,-8,-8,-8,-8,-8,-8,-8,-8,-8,-8,-8,-8,-8,-8,-8,-8,-8]} 1. d4 {[%emt 0:00:04]} Nf6 {[%emt 0:00:05]} 2. c4 {[%emt 0:00:07]} e6 {[%emt 0:00:05]} 3. Nc3 {[%emt 0:00:07]} Bb4 {[%emt 0:00:05]} 4. e3 {[%emt 0:00:09]} O-O {[%emt 0:00:16]} 5. Bd2 {[%emt 0:00:07]} b6 {[%emt 0:02:10]} 6. Bd3 {[%emt 0:00:10]} Bb7 {[%emt 0:00:04]} 7. Nf3 {[%emt 0:00:10]} d5 {[%emt 0:04:17]} 8. cxd5 {[%emt 0:00:06]} exd5 {[%emt 0:00:04]} 9. Rc1 {[%emt 0:00:23]} a6 {[%emt 0:00:31]} 10. O-O {[%emt 0:00:24]} Bd6 {[%emt 0:00:49]} 11. Ne5 {[%emt 0:01:39] E52: Nimzo-Indian: Rubinstein: 4...0-0 5 Nf3 d5 6 Bd3 b6.} c5 {[%emt 0:01:14]} 12. f4 {[%emt 0:00:23]} Nc6 {[%emt 0:00:41]} 13. Ne2 {[%emt 0:01:05] White has an edge.} Rc8 {[%emt 0:03:06] [#]} 14. Be1 $146 {[%emt 0:03:27]} ({Predecessor:} 14. Bc3 c4 15. Bb1 Ne7 16. Ng3 Ne4 17. Qg4 f5 18. Qh3 b5 19. Be1 Qe8 20. Nh5 {1-0 (50) Kovalenko,I (2647)-Brkic,A (2621) Zagreb 2021}) 14... Ne4 {[%emt 0:06:30]} 15. Ng3 {[%emt 0:07:15]} cxd4 {[%emt 0:17:44]} (15... Ne7 {looks sharper.} 16. dxc5 Bxc5 17. Qe2 b5) 16. Nxc6 {[%emt 0:06:46]} Rxc6 {[%emt 0:01:43]} 17. Rxc6 {[%emt 0:00:13]} Bxc6 {[%emt 0:00:04]} 18. exd4 {[%emt 0:00:13]} Qd7 {[%emt 0:12:25]} 19. f5 {[%emt 0:07:05]} Bxg3 {[%emt 0:01:43]} 20. Bxg3 {[%emt 0:04:47]} Bb5 {[%emt 0:00:06]} 21. b3 {[%emt 0:16:01][%cal Of5f6]} Rc8 {[%emt 0:06:52]} 22. Bxb5 {[%emt 0:07:53]} axb5 {[%emt 0:00:06]} 23. Qe2 {[%emt 0:02:42]} f6 {[%emt 0:02:43]} 24. Be1 {[%emt 0:01:27]} Rc1 {[%emt 0:01:06]} (24... h6 $17) 25. Bb4 $15 {[%emt 0:01:25]} Qc6 {[%emt 0:00:27]} 26. Rxc1 $1 {[%emt 0:06:23]} Qxc1+ {[%emt 0:00:06][%mdl 4096] Endgame KQB-KQN} 27. Be1 $1 {[%emt 0:00:01]} h6 {[%emt 0:10:18]} 28. g3 {[%emt 0:01:53]} Qa1 {[%emt 0:00:07]} 29. Kf1 {[%emt 0:02:44]} Qxd4 {[%emt 0:01:39]} 30. Qxb5 {[%emt 0:00:06] [#]} Qe5 {[%emt 0:00:02] Inhibits Qe8+.} ({Much weaker is} 30... Qd1 31. Qe8+ Kh7 32. Qg6+ Kh8 33. Qe8+ Kh7 34. Qg6+ Kh8 35. Qe8+ Kh7 $11) (30... Kh7 $1 $17) 31. Qxb6 $11 {[%emt 0:03:12] Threatens to win with Qe6+.} Qxf5+ {[%emt 0:00:05]} 32. Kg2 {[%emt 0:00:07]} (32. Ke2 $11 {is superior.}) 32... Ng5 $17 {[%emt 0:00:59]} 33. Qb8+ {[%emt 0:01:08]} Kh7 {[%emt 0:00:26]} 34. Qf4 {[%emt 0:00:04] [#] Prevents Qf3+.} Qc2+ {[%emt 0:01:34]} (34... Qh3+ $1 $17 35. Kg1 Qe6) 35. Bf2 $11 {[%emt 0:01:09]} Kg6 {[%emt 0:07:10]} 36. g4 {[%emt 0:03:10]} Kf7 {[%emt 0:03:32]} 37. Qf5 {[%emt 0:04:29]} Qc6 {[%emt 0:00:06]} 38. Kf1 {[%emt 0:03:53]} Ne6 {[%emt 0:00:46]} (38... Ne4 {feels hotter.} 39. Be1 d4 40. Ke2 g6) 39. Qf3 {[%emt 0:02:14] The position is equal.} Qc1+ {[%emt 0:07:02]} 40. Kg2 {[%emt 0:00:00]} Nf4+ {[%emt 0:00:00]} 41. Kg3 {[%emt 0:01:14]} g5 {[%emt 0:03:02] ( -> ...Qf1)} 42. Be3 {[%emt 0:04:43]} Qe1+ {[%emt 0:00:04]} 43. Qf2 {[%emt 0:00:14]} Qc3 {[%emt 0:00:38]} 44. Qd2 {[%emt 0:10:13] Prevents d4.} d4 {[%emt 0:01:39]} 45. Qxc3 {[%emt 0:00:10]} dxc3 {[%emt 0:00:04] KB-KN} 46. Kf3 {[%emt 0:00:31]} c2 {[%emt 0:01:06] White must now prevent ...Nd3.} 47. a4 {[%emt 0:01:10] a5 is the strong threat.} Ke6 {[%emt 0:00:15]} 48. Ke4 {[%emt 0:01:03] Against Nd3} Ne2 {[%emt 0:02:18]} 49. a5 {[%emt 0:01:15] aiming for a6.} Kd6 {[%emt 0:00:28]} 50. a6 {[%emt 0:06:14] Hoping for a7.} Kc7 {[%emt 0:00:13]} 51. b4 {[%emt 0:04:28]} ({Avoid the trap} 51. a7 $2 Kb7 52. Kf5 c1=Q $19) 51... c1=Q {[%emt 0:00:25]} 52. Bxc1 {[%emt 0:00:03]} Nxc1 {[%emt 0:00:05]} 53. Kf5 $1 {[%emt 0:00:32]} Nd3 {[%emt 0:00:06]} 54. Kxf6 {[%emt 0:01:15]} Nf2 {[%emt 0:00:47] Weighted Error Value: White=0.06 (flawless) /Black=0.09 (flawless)} 1/2-1/2